bitfinex-derivatives/quotes_SOLF0:USTF0_20240926
["timestamp","ask_amount","ask_price","bid_price","bid_amount"]
[1727340078277,3.3038,151.35,151.28,11.13]
[1727340078482,14.4338,151.35,151.31,11.13]
[1727340078678,11.13,151.35,151.31,11.13]
[1727340079274,14.4338,151.35,151.31,14.4346]
[1727340080090,11.13,151.37,151.32,11.13]
[1727340080482,3.3035,151.36,151.32,11.13]
[1727340080687,11.13,151.36,151.31,14.4345]
[1727340081181,3.3038,151.35,151.31,11.13]
[1727340083991,3.3038,151.35,151.3,3.3047]
[1727340084186,3.3038,151.35,151.31,11.13]
[1727340085992,3.3041,151.34,151.29,3.305]
[1727340086196,3.3041,151.34,151.3,11.13]
[1727340087493,3.3041,151.34,151.31,11.13]
[1727340087694,3.3038,151.35,151.31,11.13]
[1727340088092,3.3038,151.35,151.31,14.4344]
[1727340090403,3.3038,151.35,151.32,3.3044]
[1727340091699,3.3036,151.36,151.33,11.13]
[1727340092398,1.3946,151.42,151.35,11.13]
[1727340092597,1.3946,151.42,151.38,11.13]
[1727340093401,3.3027,151.4,151.38,11.13]
[1727340093899,3.3027,151.4,151.37,11.13]
[1727340101003,3.3029,151.39,151.37,11.13]
[1727340101406,3.3029,151.39,151.35,11.13]
[1727340102810,3.3029,151.39,151.35,14.4337]
[1727340105413,3.3031,151.38,151.35,11.13]
[1727340106702,11.13,151.4,151.34,11.13]
[1727340107009,1.3946,151.42,151.34,11.13]
[1727340107010,11.13,151.38,151.34,11.13]
[1727340107610,3.3036,151.36,151.34,11.13]
[1727340109402,11.13,151.38,151.31,7.3614]
[1727340109608,11.13,151.37,151.32,11.13]
[1727340110303,3.304,151.34,151.32,11.13]
[1727340110507,1.3946,151.42,151.33,14.4342]
[1727340110814,11.13,151.39,151.33,14.4342]
[1727340111009,3.3036,151.36,151.33,11.13]
[1727340112808,3.3033,151.37,151.33,11.13]
[1727340113010,3.3033,151.37,151.33,14.4341]
[1727340114410,3.3031,151.38,151.34,3.3039]
[1727340114611,3.3031,151.38,151.35,11.13]
[1727340117516,3.3033,151.37,151.35,11.13]
[1727340117822,3.3033,151.37,151.33,3.3041]
[1727340118018,3.3033,151.37,151.34,11.13]
[1727340120019,3.3028,151.39,151.35,14.4336]
[1727340120217,1.3946,151.42,151.38,11.13]
[1727340120619,3.3028,151.39,151.38,11.13]
[1727340121914,3.3028,151.39,151.37,11.13]
[1727340123019,3.3028,151.39,151.35,3.3037]
[1727340123316,3.3028,151.39,151.36,11.13]
[1727340126621,3.3027,151.4,151.36,14.4333]
[1727340126820,3.3027,151.4,151.38,11.13]
[1727340127723,3.3025,151.41,151.38,11.13]
[1727340128821,3.3027,151.4,151.38,11.13]
[1727340132128,11.13,151.4,151.31,2.6827]
[1727340132320,11.13,151.4,151.34,11.13]
[1727340132726,3.3032,151.38,151.34,11.13]
[1727340133226,11.13,151.4,151.34,11.13]
[1727340133426,11.13,151.38,151.32,3.3044]
[1727340133630,11.13,151.37,151.32,11.13]
[1727340134333,3.3037,151.35,151.32,11.13]
[1727340134531,11.13,151.37,151.32,11.13]
[1727340135036,3.3036,151.36,151.33,11.13]
[1727340136828,11.13,151.38,151.31,5.9872]
[1727340136829,3.3037,151.35,151.31,5.9872]
[1727340137034,3.3037,151.35,151.32,11.13]
[1727340137338,11.13,151.35,151.31,1.4016]
[1727340138034,14.47710743,151.35,151.31,1.4016]
[1727340138733,3.304,151.34,151.31,1.4016]
[1727340139130,14.47710743,151.35,151.31,1.4016]
[1727340139533,3.304,151.34,151.31,1.4016]
[1727340140137,3.3042,151.33,151.31,1.4016]
[1727340142130,3.3044,151.32,151.28,3.3052]
[1727340142332,11.13,151.32,151.25,1.3652]
[1727340142528,11.13,151.32,151.27,11.13]
[1727340142929,3.3047,151.31,151.27,11.13]
[1727340143334,11.13,151.32,151.27,11.13]
[1727340143737,3.3049,151.3,151.27,11.13]
[1727340146143,3.3049,151.3,151.27,14.4354]
[1727340148642,3.3049,151.3,151.27,3.3054]
[1727340148949,3.3049,151.3,151.27,14.4354]
[1727340149146,3.3049,151.3,151.27,11.13]
[1727340149454,3.3051,151.29,151.27,11.13]
[1727340151051,3.3051,151.29,151.25,15.8009]
[1727340152056,3.3051,151.29,151.25,12.4952]
[1727340152750,3.3051,151.29,151.25,15.8009]
[1727340152953,3.3051,151.29,151.26,11.13]
[1727340154862,3.3051,151.29,151.27,3.3055]
[1727340155359,3.3051,151.29,151.26,14.4356]
[1727340157861,3.3053,151.28,151.25,4.671]
[1727340158059,3.3053,151.28,151.25,14.4358]
[1727340158261,11.13,151.3,151.25,14.4358]
[1727340158462,3.3055,151.27,151.25,14.4358]
[1727340158951,11.13,151.3,151.25,14.4358]
[1727340159357,11.13,151.3,151.24,1.3286]
[1727340159552,11.13,151.3,151.25,11.13]
[1727340159862,3.3054,151.28,151.25,11.13]
[1727340160557,3.3054,151.28,151.24,1.3286]
[1727340160861,3.3055,151.27,151.21,2.7562]
[1727340161052,3.3055,151.27,151.24,11.13]
[1727340161256,3.3055,151.27,151.21,2.7562]
[1727340161450,3.3055,151.27,151.24,3.306]
[1727340161657,3.3055,151.27,151.24,14.436]
[1727340162257,3.3053,151.28,151.25,3.3058]
[1727340162661,3.3055,151.27,151.24,14.436]
[1727340162864,11.13,151.28,151.21,4.1364]
[1727340163163,3.3058,151.26,151.23,3.3063]
[1727340165058,11.13,151.28,151.22,3.3065]
[1727340165059,3.3059,151.25,151.22,3.3065]
[1727340165264,3.3059,151.25,151.22,14.4365]
[1727340166060,3.3059,151.25,151.22,3.3065]
[1727340166567,3.3059,151.25,151.22,14.4365]
[1727340168066,3.3059,151.25,151.22,3.3065]
[1727340168266,3.3061,151.24,151.22,3.3065]
[1727340169071,3.3061,151.24,151.18,1.3868]
[1727340169268,3.3061,151.24,151.2,11.13]
[1727340169468,3.3061,151.24,151.2,14.4368]
[1727340170065,3.3064,151.23,151.2,14.4368]
[1727340170571,3.3064,151.23,151.21,3.3068]
[1727340170769,3.3064,151.23,151.2,11.13]
[1727340171572,11.13,151.26,151.21,11.13]
[1727340172165,3.3062,151.24,151.21,14.4368]
[1727340173666,3.3056,151.27,151.23,11.13]
[1727340173868,68.11304161,151.33,151.23,11.13]
[1727340173869,11.13,151.29,151.23,11.13]
[1727340174470,11.13,151.29,151.23,14.4363]
[1727340174869,11.13,151.27,151.22,11.13]
[1727340175269,3.3058,151.26,151.22,14.4364]
[1727340177072,3.3058,151.26,151.22,3.3064]
[1727340177273,3.3055,151.27,151.23,14.4362]
[1727340178975,3.3055,151.27,151.18,1.3868]
[1727340178976,11.13,151.27,151.21,11.13]
[1727340179175,14.47226544,151.27,151.21,11.13]
[1727340179977,11.13,151.26,151.21,11.13]
[1727340180177,3.3059,151.25,151.21,14.4367]
[1727340180476,3.3059,151.25,151.21,11.13]
[1727340180965,3.3059,151.25,151.21,14.4367]
[1727340181874,3.3057,151.26,151.22,3.3065]
[1727340182276,11.13,151.26,151.2,11.13]
[1727340182874,14.436,151.25,151.21,3.3068]
[1727340185375,3.3063,151.24,151.2,3.307]
[1727340185774,11.13,151.23,151.2,3.307]
[1727340185976,11.13,151.22,151.16,1.3168]
[1727340186472,11.13,151.22,151.17,11.13]
[1727340187784,3.3068,151.21,151.18,3.3074]
[1727340189681,14.4368,151.21,151.17,14.4376]
[1727340190082,11.13,151.21,151.16,4.6246]
[1727340190282,3.32837303,151.24,151.14,72.72567972]
[1727340190486,3.3077,151.17,151.14,72.72567972]
[1727340190685,14.4377,151.17,151.14,72.72567972]
[1727340191280,11.13,151.15,150.99,9.9346]
[1727340191482,2.6485,151.19,151.09,11.13]
[1727340191683,11.13,151.14,151.09,11.13]
[1727340191877,14.4385,151.14,151.1,3.3091]
[1727340192083,2.6485,151.19,151.11,11.13]
[1727340192280,11.13,151.16,151.11,11.13]
[1727340192788,11.13,151.16,151.12,3.3086]
[1727340193084,11.13,151.16,151.11,11.13]
[1727340193676,11.13,151.16,151.13,3.3084]
[1727340194888,2.6485,151.19,151.13,14.4384]
[1727340194889,14.4375,151.18,151.13,14.4384]
[1727340195187,11.13,151.18,151.13,14.4384]
[1727340196082,85.9896,151.31,151.15,3.308]
[1727340196282,11.13,151.18,151.15,3.308]
[1727340196887,11.13,151.18,151.13,11.13]
[1727340196888,11.13,151.18,151.14,3.3083]
[1727340197292,14.4375,151.18,151.13,14.4385]
[1727340199586,11.13,151.17,151.13,14.4385]
[1727340201686,14.4375,151.18,151.13,14.4385]
[1727340202192,3.3077,151.17,151.13,14.4385]
[1727340203486,3.3077,151.17,151.13,3.3085]
[1727340203683,3.3077,151.17,151.13,14.4385]
[1727340204294,3.3075,151.18,151.13,14.4385]
[1727340205092,3.3077,151.17,151.13,14.4385]
[1727340206989,3.3077,151.17,151.13,3.3085]
[1727340210598,14.4377,151.17,151.13,3.3085]
[1727340212796,14.4379,151.16,151.12,3.3087]
[1727340213588,3.3081,151.15,151.12,3.3087]
[1727340215095,11.13,151.16,151.07,3.9112]
[1727340215308,11.13,151.16,151.1,11.13]
[1727340215695,3.3085,151.14,151.1,14.4391]
[1727340216292,11.13,151.13,151.07,12.48]
[1727340216901,3.3089,151.12,151.08,3.3096]
[1727340218601,14.4386,151.13,151.08,11.13]
[1727340219517,14.4386,151.13,151.08,14.4394]
[1727340220294,3.3087,151.12,151.08,14.4394]
[1727340220596,2.6617,151.18,151.09,3.3094]
[1727340220903,2.6617,151.18,151.1,11.13]
[1727340221096,2.6617,151.18,151.11,14.4388]
[1727340221296,3.3085,151.14,151.07,1.35]
[1727340221501,3.3085,151.14,151.09,11.13]
[1727340221801,3.3085,151.14,151.09,14.4392]
[1727340222197,11.13,151.13,151.08,3.3095]
[1727340222502,2.6617,151.18,151.08,3.3095]
[1727340222503,11.13,151.12,151.08,3.3095]
[1727340222706,14.4388,151.12,151.08,3.3095]
[1727340223401,3.3088,151.12,151.05,2.67]
[1727340223605,3.3088,151.12,151.08,11.13]
[1727340224204,3.3088,151.12,151.05,2.67]
[1727340224594,3.3088,151.12,151.08,14.4395]
[1727340225001,3.309,151.11,151.08,14.4395]
[1727340225508,11.13,151.13,151.08,14.4395]
[1727340225703,11.13,151.13,151.08,3.3095]
[1727340225901,11.13,151.13,151.08,14.4395]
[1727340226908,3.309,151.11,151.08,14.4395]
[1727340227209,11.13,151.13,151.08,14.4395]
[1727340227610,3.3089,151.12,151.08,14.4395]
[1727340227810,2.6617,151.18,151.09,14.4394]
[1727340228011,11.13,151.14,151.09,11.13]
[1727340228812,3.3088,151.12,151.09,11.13]
[1727340229210,3.3088,151.12,151.08,14.4396]
[1727340230014,3.309,151.11,151.08,11.13]
[1727340230611,2.6617,151.18,151.07,11.13]
[1727340230916,11.13,151.13,151.07,11.13]
[1727340231212,2.6617,151.18,151.09,11.13]
[1727340231408,11.13,151.13,151.09,11.13]
[1727340231917,3.3088,151.12,151.08,3.3096]
[1727340232314,14.4388,151.12,151.08,3.3096]
[1727340232520,3.3092,151.1,151.06,3.3099]
[1727340232718,3.3092,151.1,151.06,14.4399]
[1727340234510,3.3092,151.1,151.07,3.3098]
[1727340234718,3.3092,151.1,151.07,14.4398]
[1727340235016,3.309,151.11,151.07,11.13]
[1727340235219,2.6617,151.18,151.09,11.13]
[1727340235412,3.3089,151.12,151.09,11.13]
[1727340239021,3.3089,151.12,151.08,3.3095]
[1727340239216,3.3089,151.12,151.08,14.4395]
[1727340240123,3.3089,151.12,151.08,11.13]
[1727340240327,3.3089,151.12,151.09,3.3094]
[1727340240520,11.13,151.14,151.08,11.13]
[1727340240725,11.13,151.14,151.08,14.4394]
[1727340241119,3.3089,151.12,151.08,14.4394]
[1727340241619,3.3086,151.13,151.09,3.3093]
[1727340242933,3.3088,151.12,151.09,3.3093]
[1727340244034,3.3086,151.13,151.09,3.3093]
[1727340244230,3.3086,151.13,151.09,14.4393]
[1727340245234,11.13,151.11,151.05,1.3914]
[1727340245430,11.13,151.11,151.06,11.13]
[1727340245837,14.4391,151.11,151.07,3.3097]
[1727340247734,3.3092,151.1,151.07,3.3097]
[1727340249532,3.3094,151.09,151.07,3.3097]
[1727340249740,2.6617,151.18,151.07,3.3097]
[1727340250142,3.3092,151.11,151.07,3.3097]
[1727340250345,14.48574246,151.12,151.07,3.3097]
[1727340251140,3.3093,151.1,151.07,3.3097]
[1727340251837,3.3094,151.09,151.06,14.44]
[1727340252445,3.3094,151.09,151.07,3.3098]
[1727340255137,3.3092,151.1,151.07,3.3098]
[1727340258143,3.3095,151.09,151.06,14.44]
[1727340260648,3.3095,151.09,151.07,3.3098]
[1727340261542,3.3093,151.1,151.07,3.3098]
[1727340262548,3.3091,151.11,151.08,3.3096]
[1727340262747,3.3091,151.11,151.07,11.13]
[1727340263446,3.3091,151.11,151.07,14.4397]
[1727340264051,3.3091,151.11,151.08,3.3096]
[1727340266854,3.3089,151.12,151.09,14.4394]
[1727340267047,3.3089,151.12,151.09,11.13]
[1727340267247,14.4389,151.12,151.07,11.13]
[1727340267442,3.309,151.11,151.08,3.3095]
[1727340268348,3.309,151.11,151.07,14.4398]
[1727340269849,11.13,151.11,151.05,3.3102]
[1727340270050,11.13,151.11,151.05,11.13]
[1727340270449,3.3096,151.09,151.05,14.4402]
[1727340270853,3.24117608,151.13,151.02,2.6872]
[1727340270854,11.13,151.08,151.02,2.6872]
[1727340271152,3.3099,151.07,151.03,11.13]
[1727340271344,3.3099,151.07,151.03,15.86506473]
[1727340271550,3.3099,151.07,151.03,11.13]
[1727340272258,3.3099,151.07,151.02,2.6872]
[1727340272554,3.3097,151.08,151.04,11.13]
[1727340272750,15.74473239,151.12,151.07,11.13]
[1727340272951,12.3987,151.12,151.07,11.13]
[1727340273555,15.6927301,151.12,151.07,11.13]
[1727340273755,15.6927301,151.12,150.96,3.2723362]
[1727340273756,4.5627301,151.12,150.96,3.2723362]
[1727340273952,4.5627301,151.12,151.04,11.13]
[1727340273953,11.13,151.09,151.04,11.13]
[1727340274349,3.3095,151.09,151.04,14.4403]
[1727340274558,11.13,151.11,151.05,11.13]
[1727340275550,3.3095,151.09,151.05,14.4401]
[1727340275854,12.3987,151.12,151.05,14.4401]
[1727340276054,3.3093,151.1,151.05,14.4401]
[1727340277059,3.3095,151.09,151.05,14.4401]
[1727340277251,12.3987,151.12,151.04,11.13]
[1727340277252,11.13,151.1,151.04,11.13]
[1727340278857,3.3098,151.08,151.04,14.4405]
[1727340280253,11.13,151.07,151.01,3.311]
[1727340280455,11.13,151.07,151.02,11.13]
[1727340280850,3.3104,151.05,151.02,11.13]
[1727340281557,3.3101,151.06,151.02,14.4409]
[1727340281758,3.3101,151.06,151.03,11.13]
[1727340285856,3.3101,151.06,151.03,14.4407]
[1727340286557,14.4399,151.07,151.03,14.4407]
[1727340286756,14.4399,151.07,151.03,3.3107]
[1727340288061,11.13,151.08,151.03,11.13]
[1727340288865,3.31,151.07,151.03,14.4406]
[1727340289259,11.13,151.08,151.03,11.13]
[1727340289967,1.2687,151.12,151.06,11.13]
[1727340290170,11.13,151.11,151.06,11.13]
[1727340290465,14.4392,151.1,151.06,14.4399]
[1727340291061,3.3094,151.09,151.06,14.4399]
[1727340291267,11.13,151.1,151.0,1.2666]
[1727340291475,11.13,151.1,151.04,11.13]
[1727340291863,3.3096,151.08,151.05,3.3103]
[1727340293864,3.3096,151.08,151.05,14.4403]
[1727340294177,3.3092,151.1,151.05,11.13]
[1727340294565,3.3094,151.09,151.05,11.13]
[1727340295766,3.3094,151.09,151.06,3.31]
[1727340298670,3.3094,151.09,151.06,14.44]
[1727340302067,3.3094,151.09,151.06,11.13]
[1727340302272,3.3095,151.09,151.06,11.13]
[1727340302773,11.13,151.11,151.06,11.13]
[1727340303772,3.3095,151.09,151.06,11.13]
[1727340304873,11.13,151.11,151.06,11.13]
[1727340306268,11.13,151.08,151.02,2.7464]
[1727340306480,11.13,151.08,151.02,13.8764]
[1727340307276,3.3099,151.07,151.03,14.4407]
[1727340307772,3.3099,151.07,151.04,11.13]
[1727340308276,3.3101,151.06,151.03,3.3107]
[1727340308477,3.3101,151.06,151.03,14.4407]
[1727340310165,3.3101,151.06,151.02,2.7464]
[1727340310166,3.3099,151.07,151.05,11.13]
[1727340311573,3.3097,151.08,151.05,14.4403]
[1727340311973,3.3097,151.08,151.05,11.13]
[1727340312173,3.3099,151.07,151.05,11.13]
[1727340312476,11.13,151.1,151.05,11.13]
[1727340312677,3.3097,151.08,151.04,3.3104]
[1727340312873,3.3097,151.08,151.05,11.13]
[1727340314074,3.3097,151.08,151.05,14.4402]
[1727340316477,2.6664,151.12,151.06,11.13]
[1727340316678,13.7964,151.12,151.06,11.13]
[1727340317478,3.23332671,151.13,151.06,14.44]
[1727340317679,11.13,151.12,151.06,14.44]
[1727340317877,3.3093,151.1,151.06,14.44]
[1727340319672,3.3093,151.1,151.07,11.19]
[1727340321981,3.3095,151.09,151.07,11.19]
[1727340324975,3.3092,151.1,151.07,11.19]
[1727340328480,3.3092,151.1,151.06,3.31]
[1727340328676,3.3092,151.1,151.07,11.19]
[1727340332574,3.3092,151.1,151.06,3.31]
[1727340332779,3.3092,151.1,151.07,11.19]
[1727340338986,3.3092,151.1,151.07,14.4998]
[1727340340686,3.3092,151.1,151.07,11.19]
[1727340343088,3.3092,151.1,151.06,3.31]
[1727340343486,3.3092,151.1,151.07,11.19]
[1727340343690,11.19,151.13,151.07,11.19]
[1727340343884,11.19,151.13,151.07,14.4998]
[1727340344490,11.19,151.13,151.07,11.19]
[1727340344789,3.3093,151.1,151.07,11.19]
[1727340346692,3.309,151.11,151.07,14.4998]
[1727340347090,11.19,151.13,151.07,11.19]
[1727340348194,3.3091,151.11,151.07,14.4998]
[1727340352892,6.91298021,151.28,151.07,14.4998]
[1727340352893,6.6126,151.24,151.1,11.19]
[1727340353096,6.6126,151.24,151.07,3.37880794]
[1727340353097,6.6126,151.24,151.14,11.19]
[1727340353293,1.2698,151.23,151.14,11.19]
[1727340353497,11.19,151.19,151.14,11.19]
[1727340353700,3.3077,151.17,151.14,11.19]
[1727340355405,11.19,151.18,151.08,3.9163]
[1727340355597,11.19,151.17,151.12,11.19]
[1727340356698,10.42910621,151.21,151.13,11.19]
[1727340356699,11.19,151.18,151.13,11.19]
[1727340356896,3.3082,151.15,151.13,11.19]
[1727340359205,11.19,151.15,151.08,3.9163]
[1727340359404,11.19,151.19,151.13,11.19]
[1727340359609,11.19,151.19,151.08,3.9163]
[1727340359610,11.19,151.16,151.08,7.28913198]
[1727340359807,3.3086,151.13,151.11,11.19]
[1727340360612,3.3086,151.13,151.08,3.9163]
[1727340360817,3.3083,151.14,151.1,3.309]
[1727340361115,11.19,151.16,151.11,11.19]
[1727340361413,3.3084,151.14,151.11,11.19]
[1727340362515,1.2887,151.2,151.12,11.19]
[1727340362809,1.2887,151.2,151.14,11.19]
[1727340363015,11.19,151.19,151.14,11.19]
[1727340363213,3.3081,151.16,151.14,11.19]
[1727340364619,14.43891804,151.16,151.08,1.2676]
[1727340364823,14.43891804,151.16,151.1,11.19]
[1727340365717,10.41292002,151.15,151.1,11.19]
[1727340366717,21.60292002,151.15,151.1,11.19]
[1727340366919,3.3089,151.12,151.1,11.19]
[1727340367320,3.309,151.11,151.08,1.2676]
[1727340367515,3.24891804,151.16,151.08,1.2676]
[1727340367717,11.19,151.12,151.05,2.6455]
[1727340367917,3.3095,151.09,151.06,11.19]
[1727340368631,11.19,151.09,151.05,1.335]
[1727340368821,11.19,151.11,151.05,11.19]
[1727340369014,3.3096,151.09,151.05,11.19]
[1727340370124,3.3096,151.09,151.05,14.5003]
[1727340370324,3.3096,151.09,151.07,11.19]
[1727340370827,3.3092,151.1,151.08,11.19]
[1727340372224,3.3092,151.1,151.05,3.3102]
[1727340372422,3.3092,151.1,151.07,11.19]
[1727340373319,3.3092,151.1,151.05,3.3102]
[1727340373515,3.3094,151.09,151.07,11.19]
[1727340375226,3.3098,151.08,151.03,3.3106]
[1727340375523,3.3098,151.08,151.05,11.19]
[1727340375724,3.3098,151.08,151.07,11.19]
[1727340376026,3.3094,151.09,151.07,11.19]
[1727340378622,3.3092,151.1,151.08,11.19]
[1727340378821,11.19,151.14,151.09,11.19]
[1727340380127,11.19,151.16,151.11,11.19]
[1727340380531,3.3085,151.14,151.11,11.19]
[1727340381025,3.3083,151.15,151.12,11.19]
[1727340382120,3.3083,151.14,151.12,11.19]
[1727340383527,3.3085,151.13,151.1,11.19]
[1727340385826,3.3084,151.14,151.12,11.19]
[1727340387827,3.3081,151.15,151.12,11.19]
[1727340388122,1.3316,151.23,151.08,4.0858]
[1727340388123,2.6808,151.23,151.14,11.19]
[1727340388325,3.3078,151.17,151.14,11.19]
[1727340388527,10.40769161,151.19,151.14,11.19]
[1727340388923,11.19,151.2,151.14,11.19]
[1727340388924,3.3078,151.17,151.14,11.19]
[1727340389124,11.19,151.2,151.14,11.19]
[1727340389735,21.59749349,151.2,151.14,11.19]
[1727340389937,11.19,151.2,151.14,11.19]
[1727340390933,10.40666589,151.22,151.14,11.19]
[1727340391138,22.14381488,151.22,151.16,11.19]
[1727340391331,11.19,151.21,151.16,11.19]
[1727340391934,3.3076,151.18,151.16,11.19]
[1727340392936,3.3076,151.17,151.16,11.19]
[1727340394530,3.3075,151.18,151.16,11.19]
[1727340394845,11.19,151.22,151.17,11.19]
[1727340395540,13.8966,151.23,151.17,11.19]
[1727340396040,3.3073,151.19,151.17,11.19]
[1727340396434,3.3071,151.2,151.17,11.19]
[1727340396735,11.19,151.24,151.19,11.19]
[1727340397035,1.3054,151.29,151.2,11.19]
[1727340397036,2.617,151.28,151.2,11.19]
[1727340397237,2.617,151.28,151.22,11.19]
[1727340397442,24.21078952,151.28,151.22,11.19]
[1727340397739,12.4766,151.28,151.23,11.19]
[1727340398333,11.19,151.28,151.23,11.19]
[1727340398533,9.8992,151.54,151.27,11.19]
[1727340398736,11.19,151.33,151.27,11.19]
[1727340399139,3.3048,151.31,151.27,11.19]
[1727340399336,11.19,151.33,151.27,11.19]
[1727340399540,11.19,151.34,151.29,11.19]
[1727340400437,3.34028053,151.37,151.24,2.6798]
[1727340400438,11.19,151.32,151.24,2.6798]
[1727340400643,11.19,151.32,151.26,11.19]
[1727340401144,3.3051,151.29,151.26,11.19]
[1727340404938,3.3051,151.29,151.27,11.19]
[1727340405635,11.19,151.28,151.06,6.6198]
[1727340405835,11.19,151.24,151.18,11.19]
[1727340406047,11.19,151.23,151.18,11.19]
[1727340407946,3.3072,151.19,151.18,11.19]
[1727340408147,1.2959,151.27,151.17,11.19]
[1727340408344,3.3068,151.21,151.15,73.99677787]
[1727340408550,3.3068,151.21,151.19,11.19]
[1727340413443,3.3072,151.2,151.16,1.3534]
[1727340413642,11.19,151.22,151.16,1.3534]
[1727340413842,11.19,151.22,151.17,11.19]
[1727340414852,3.3073,151.19,151.17,11.19]
[1727340416248,3.3073,151.19,151.15,73.99677787]
[1727340416249,1.2959,151.27,151.15,73.99677787]
[1727340416452,11.19,151.19,151.15,1.2755]
[1727340418249,3.3078,151.17,151.15,1.2755]
[1727340420247,3.3078,151.17,151.1,1.2697]
[1727340420248,11.19,151.17,151.1,1.2697]
[1727340420447,11.19,151.17,151.14,11.19]
[1727340420652,1.2859,151.2,151.14,11.19]
[1727340420852,11.19,151.18,151.14,11.19]
[1727340421553,1.2859,151.2,151.14,11.19]
[1727340421554,3.3077,151.17,151.14,11.19]
[1727340421862,1.3051,151.21,151.15,11.19]
[1727340421863,12.4951,151.21,151.15,11.19]
[1727340423457,3.3077,151.17,151.15,11.19]
[1727340423852,3.3075,151.18,151.15,11.19]
[1727340424051,1.3051,151.21,151.17,11.19]
[1727340424960,11.19,151.23,151.17,11.19]
[1727340426347,11.19,151.22,151.17,11.19]
[1727340427558,3.3074,151.19,151.17,11.19]
[1727340427759,2.6328,151.26,151.18,11.19]
[1727340427949,11.19,151.23,151.18,11.19]
[1727340429665,3.3071,151.2,151.18,11.19]
[1727340431262,3.3072,151.19,151.17,11.19]
[1727340433259,2.6328,151.26,151.13,82.7085]
[1727340433260,3.3074,151.18,151.13,82.7085]
[1727340433462,3.3074,151.18,151.15,11.19]
[1727340434151,3.3074,151.18,151.12,79.4]
[1727340434356,3.3074,151.18,151.16,11.19]
[1727340436658,11.19,151.2,151.12,79.4]
[1727340436867,11.19,151.18,151.12,90.59]
[1727340437055,1.274,151.19,151.12,11.19]
[1727340437260,11.19,151.16,151.12,11.19]
[1727340437866,3.3084,151.14,151.12,11.19]
[1727340438060,1.274,151.19,151.11,1.3302]
[1727340438367,11.19,151.15,151.11,1.3302]
[1727340438567,3.3087,151.12,151.11,1.3302]
[1727340439071,3.3086,151.13,151.11,1.3302]
[1727340439671,11.19,151.15,151.11,1.3302]
[1727340441469,3.3087,151.13,151.11,1.3302]
[1727340441670,1.274,151.19,151.11,12.5202]
[1727340441972,11.19,151.17,151.11,12.5202]
[1727340442174,3.3084,151.14,151.11,12.5202]
[1727340442369,3.3084,151.14,151.13,11.19]
[1727340442569,1.274,151.19,151.13,11.19]
[1727340442570,3.3081,151.15,151.13,11.19]
[1727340442770,3.3081,151.15,151.14,11.19]